bitfinex-derivatives/quotes_SOLF0:USTF0_20250105
["timestamp","ask_amount","ask_price","bid_price","bid_amount"]
[1736084261710,14.16,214.2,214.11,2.58]
[1736084261711,2.335,214.19,214.11,2.58]
[1736084261909,3.7702,214.19,214.11,2.58]
[1736084262512,3.7702,214.19,214.14,2.3354]
[1736084263007,2.335,214.18,214.14,2.3354]
[1736084265517,2.335,214.18,214.11,2.58]
[1736084265818,2.335,214.18,214.13,2.3356]
[1736084266311,1.4352,214.19,214.11,2.58]
[1736084267609,1.4352,214.19,214.17,2.3351]
[1736084268219,3.73,214.18,214.17,2.3351]
[1736084268415,3.73,214.18,214.11,2.58]
[1736084268615,3.73,214.18,214.15,2.3352]
[1736084269215,3.73,214.18,214.13,2.3356]
[1736084269414,3.73,214.18,214.11,2.58]
[1736084270410,2.3352,214.17,214.13,2.3355]
[1736084273923,3.73,214.18,214.13,2.3355]
[1736084274114,3.73,214.18,214.11,2.58]
[1736084274312,3.73,214.18,214.16,2.3351]
[1736084275623,2.3351,214.17,214.13,2.3356]
[1736084276918,17.2251,214.17,214.13,2.3356]
[1736084278725,27.0951,214.17,214.13,2.3356]
[1736084279624,2.3353,214.16,214.11,2.3357]
[1736084279922,2.3353,214.16,214.1,74.16475194]
[1736084280425,2.3353,214.16,214.12,2.3356]
[1736084281221,27.0951,214.17,214.13,2.3355]
[1736084281427,24.76,214.17,214.1,2.58]
[1736084281828,24.76,214.17,214.15,2.3353]
[1736084282529,24.76,214.17,214.13,2.3355]
[1736084282731,24.76,214.17,214.1,2.58]
[1736084283126,24.76,214.17,214.15,2.3353]
[1736084283335,24.76,214.17,214.1,2.58]
[1736084285336,24.76,214.17,214.12,2.3357]
[1736084285529,24.76,214.17,214.1,2.58]
[1736084286432,24.76,214.17,214.15,2.3353]
[1736084286824,24.76,214.17,214.15,2.58]
[1736084287133,24.76,214.17,214.16,2.3352]
[1736084287524,28.49,214.17,214.16,2.3352]
[1736084291533,32.22,214.17,214.16,2.3352]
[1736084299045,32.22,214.17,214.16,4.9152]
[1736084300546,32.22,214.17,214.16,2.3352]
[1736084300747,32.22,214.17,214.16,4.9152]
[1736084301747,32.22,214.17,214.16,2.3352]
[1736084305653,32.22,214.17,214.14,4.9154]
[1736084305952,28.49,214.17,214.14,4.9154]
[1736084306150,28.49,214.17,214.14,2.58]
[1736084306558,28.49,214.17,214.16,2.3352]
[1736084306953,32.22,214.17,214.16,2.3352]
[1736084310655,32.22,214.17,214.14,2.3354]
[1736084311657,34.5551,214.17,214.13,2.3356]
[1736084316563,30.8251,214.17,214.13,2.3356]
[1736084317761,3.73,214.16,214.13,2.3356]
[1736084319164,14.64,214.16,214.13,2.3356]
[1736084319387,24.25,214.16,214.13,2.3356]
[1736084322373,26.5853,214.16,214.12,2.58]
[1736084322574,26.5853,214.16,214.11,7.82270922]
[1736084322765,27.0639,214.16,214.11,7.82270922]
[1736084322964,2.3356,214.14,214.11,7.82270922]
[1736084324175,28.4797,214.16,214.07,77.78597873]
[1736084324468,28.4797,214.16,214.0,6.49240055]
[1736084324670,28.4797,214.16,214.01,2.58]
[1736084324866,2.3359,214.11,214.06,2.3362]
[1736084325164,28.4797,214.16,214.06,2.3362]
[1736084325368,2.58,214.15,214.06,2.3362]
[1736084326173,2.58,214.15,213.97,7.94630055]
[1736084326370,2.336,214.09,213.98,2.58]
[1736084327271,2.336,214.09,213.99,2.58]
[1736084327574,2.336,214.09,214.04,2.3365]
[1736084329475,2.336,214.09,214.05,2.3364]
[1736084330276,3.73,214.08,214.05,2.3364]
[1736084337479,15.65,214.08,214.05,2.3364]
[1736084341387,15.65,214.08,214.02,2.58]
[1736084341683,15.65,214.08,214.07,2.3362]
[1736084342877,15.65,214.08,214.05,2.3364]
[1736084343992,3.73,214.07,214.05,2.3364]
[1736084344685,3.73,214.07,214.04,2.3365]
[1736084345387,6.0662,214.07,214.04,2.3365]
[1736084345596,6.0662,214.07,214.03,2.58]
[1736084347493,6.0662,214.07,214.03,4.9166]
[1736084350285,12.27,214.07,214.03,2.58]
[1736084350492,12.27,214.07,214.06,2.3363]
[1736084351702,27.14,214.07,214.06,2.3363]
[1736084357497,30.87,214.07,214.06,2.3363]
[1736084360294,30.87,214.07,214.04,2.3365]
[1736084360598,30.87,214.07,214.03,2.58]
[1736084360599,27.14,214.07,214.03,2.58]
[1736084361500,27.14,214.07,214.02,4.9167]
[1736084361702,3.73,214.06,214.02,4.9167]
[1736084366502,3.73,214.06,214.02,2.58]
[1736084366802,6.0663,214.06,214.02,2.58]
[1736084368599,6.0663,214.06,214.01,2.3369]
[1736084368899,6.0663,214.06,214.01,4.9169]
[1736084369798,6.0663,214.06,214.01,2.3369]
[1736084370693,2.3365,214.05,214.0,2.58]
[1736084371503,2.3366,214.04,213.99,2.337]
[1736084371804,3.73,214.06,213.99,4.917]
[1736084372406,2.3366,214.04,213.99,4.917]
[1736084374603,10.5566,214.04,213.99,4.917]
[1736084375004,8.22,214.04,213.99,4.917]
[1736084375204,2.3367,214.03,213.99,4.917]
[1736084377405,8.22,214.04,214.01,2.3368]
[1736084378011,23.41,214.04,214.01,2.3368]
[1736084378599,25.7466,214.04,214.01,2.3368]
[1736084378805,3.73,214.03,214.01,2.3368]
[1736084379909,3.73,214.03,214.02,2.3368]
[1736084383710,7.46,214.03,214.02,2.3368]
[1736084385207,7.46,214.03,214.01,2.3369]
[1736084385705,7.46,214.03,214.0,2.337]
[1736084387512,7.46,214.03,214.01,2.3369]
[1736084387713,7.46,214.03,213.99,2.58]
[1736084388104,7.46,214.03,214.02,2.3368]
[1736084391519,7.46,214.03,213.95,75.17383014]
[1736084391716,7.46,214.03,214.01,2.3369]
[1736084393721,7.46,214.03,213.99,2.337]
[1736084394811,16.2,214.03,213.99,2.337]
[1736084395324,16.2,214.03,213.96,2.58]
[1736084395521,16.2,214.03,214.0,2.3369]
[1736084396123,3.73,214.02,214.0,2.3369]
[1736084396524,3.73,214.02,213.96,2.58]
[1736084396823,3.73,214.02,213.97,2.58]
[1736084397323,6.0668,214.02,213.97,4.9172]
[1736084397518,3.73,214.02,213.97,2.58]
[1736084398130,2.3369,214.01,213.97,4.9173]
[1736084398522,3.73,214.02,213.97,2.58]
[1736084398730,2.3369,214.01,213.97,2.58]
[1736084400530,2.3369,214.01,213.95,75.17383014]
[1736084400831,2.3369,214.01,213.97,2.3373]
[1736084402123,16.2269,214.01,213.97,2.3373]
[1736084405733,16.2269,214.01,213.97,4.9173]
[1736084407035,28.4569,214.01,213.97,4.9173]
[1736084409041,3.73,214.0,213.97,4.9173]
[1736084409335,3.73,214.0,213.97,2.58]
[1736084409535,6.067,214.0,213.97,2.58]
[1736084410138,2.3373,213.97,213.93,2.3377]
[1736084411442,2.3374,213.96,213.93,2.3377]
[1736084411740,2.3374,213.96,213.91,2.3379]
[1736084412633,2.3374,213.96,213.9,2.58]
[1736084412634,2.3374,213.96,213.92,2.3378]
[1736084413133,2.3373,213.97,213.92,2.3378]
[1736084414543,2.3373,213.97,213.93,2.3377]
[1736084415041,2.3372,213.99,213.93,2.3377]
[1736084415237,6.5772,214.0,213.93,2.3377]
[1736084415445,6.5772,214.0,213.9,2.58]
[1736084415745,2.3371,213.99,213.9,2.58]
[1736084415949,2.3371,213.99,213.95,2.3374]
[1736084418749,6.5772,214.0,213.9,2.58]
[1736084418949,8.9142,214.0,213.9,2.58]
[1736084420449,8.9142,214.0,213.96,2.3374]
[1736084420654,2.3371,213.99,213.96,2.3374]
[1736084421149,3.73,213.98,213.96,2.3374]
[1736084422145,3.73,213.98,213.9,2.58]
[1736084422347,6.0673,213.98,213.9,2.58]
[1736084423245,6.0673,213.98,213.93,2.3377]
[1736084423446,6.0673,213.98,213.9,2.58]
[1736084424346,28.5473,213.98,213.9,2.58]
[1736084424548,26.21,213.98,213.94,2.3376]
[1736084424846,2.3373,213.97,213.94,2.3376]
[1736084430754,26.21,213.98,213.94,2.3376]
[1736084431055,28.5472,213.98,213.94,2.3376]
[1736084431253,3.73,213.97,213.94,2.3376]
[1736084431455,3.73,213.97,213.96,2.3374]
[1736084434357,7.46,213.97,213.96,2.3374]
[1736084438158,7.46,213.97,213.96,2.58]
[1736084440760,7.46,213.97,213.95,2.58]
[1736084442556,7.46,213.97,213.95,4.9175]
[1736084447055,7.46,213.97,213.96,2.3374]
[1736084450568,22.7,213.97,213.96,2.3374]
[1736084451467,31.65,213.97,213.96,2.3374]
[1736084451768,31.65,213.97,213.95,4.9175]
[1736084453965,31.65,213.97,213.96,2.3374]
[1736084455774,31.65,213.97,213.95,2.58]
[1736084456672,31.65,213.97,213.94,4.9175]
[1736084456874,31.65,213.97,213.94,2.3375]
[1736084457068,31.65,213.97,213.94,4.9175]
[1736084457670,31.65,213.97,213.94,2.58]
[1736084458572,27.92,213.97,213.94,2.58]
[1736084458767,30.2573,213.97,213.94,2.58]
[1736084459668,3.73,213.96,213.94,2.58]
[1736084460573,3.73,213.96,213.93,76.60201047]
[1736084461381,3.73,213.96,213.93,78.93971047]
[1736084461563,3.73,213.95,213.93,78.93971047]
[1736084466572,3.73,213.95,213.85,9.25900368]
[1736084466875,3.73,213.95,213.86,2.58]
[1736084467071,2.3378,213.93,213.89,2.3382]
[1736084467674,12.4078,213.93,213.89,2.3382]
[1736084467975,12.4078,213.93,213.86,2.58]
[1736084468277,12.4078,213.93,213.87,4.9183]
[1736084468278,2.3379,213.92,213.87,4.9183]
[1736084469878,2.3379,213.92,213.88,2.3383]
[1736084470583,2.338,213.91,213.87,4.9184]
[1736084471682,10.07,213.93,213.87,4.9184]
[1736084471683,2.3379,213.92,213.87,4.9184]
[1736084471893,11.46,213.91,213.87,4.9184]
[1736084472978,11.46,213.91,213.9,2.3381]
[1736084483002,15.19,213.91,213.9,2.3381]
[1736084483702,18.92,213.91,213.9,2.3381]
[1736084491910,28.18,213.91,213.9,2.3381]
[1736084538843,28.18,213.91,213.9,4.9181]
[1736084541142,28.18,213.91,213.89,2.58]
[1736084541350,20.72,213.91,213.89,2.58]
[1736084541560,20.72,213.91,213.88,2.58]
[1736084542266,20.72,213.91,213.88,4.9183]
[1736084542457,7.48,213.9,213.88,4.9183]
[1736084543847,16.23,213.9,213.88,4.9183]
[1736084544040,29.59,213.9,213.88,4.9183]
[1736084544949,29.59,213.9,213.88,2.58]
[1736084545151,29.59,213.9,213.89,2.3382]
[1736084549651,29.59,213.9,213.88,4.9183]
[1736084554552,25.85,213.9,213.88,4.9183]
[1736084555647,3.74,213.89,213.88,4.9183]
[1736084561057,3.74,213.89,213.88,2.3383]
[1736084566665,7.48,213.89,213.88,2.3383]
[1736084568160,17.2,213.89,213.88,2.3383]
[1736084572264,27.79,213.89,213.88,2.3383]
[1736084573662,27.79,213.89,213.87,2.3384]
[1736084573966,24.05,213.89,213.87,2.3384]
[1736084575165,3.74,213.88,213.87,2.3384]
[1736084577669,3.74,213.88,213.86,12.75089912]
[1736084580665,3.74,213.88,213.86,10.41239912]
[1736084581164,6.0783,213.88,213.85,2.58]
[1736084581367,3.74,213.88,213.85,2.58]
[1736084582969,3.74,213.87,213.85,2.58]
[1736084583571,3.74,213.87,213.83,2.3388]
[1736084583873,3.74,213.87,213.83,4.9188]
[1736084585576,3.74,213.87,213.83,2.3388]
[1736084585770,6.0784,213.87,213.83,2.3388]
[1736084586473,18.9884,213.87,213.83,2.3388]
[1736084588679,16.65,213.87,213.84,2.3387]
[1736084591776,16.65,213.87,213.82,2.58]
[1736084591982,16.65,213.87,213.85,2.3386]
[1736084594176,16.65,213.87,213.86,2.3385]
[1736084594379,1.4015,213.86,213.82,2.58]
[1736084595480,1.4015,213.86,213.85,2.3386]
[1736084595684,1.4015,213.86,213.82,2.58]
[1736084596081,1.4015,213.86,213.83,2.3388]
[1736084596286,10.1515,213.86,213.83,2.3388]
[1736084596681,10.1515,213.86,213.82,4.9189]
[1736084597285,12.49,213.86,213.82,2.3389]
[1736084597482,10.1515,213.86,213.81,2.58]
[1736084598081,10.1515,213.86,213.83,2.3388]
[1736084598481,10.1515,213.86,213.81,2.58]
[1736084599091,10.1515,213.86,213.84,2.3386]
[1736084599293,10.1515,213.86,213.81,2.58]
[1736084599493,10.1515,213.86,213.84,2.3386]
[1736084600293,13.8915,213.86,213.84,2.3386]
[1736084607594,13.8915,213.86,213.85,2.3386]
[1736084613689,22.1715,213.86,213.85,2.3386]
[1736084615697,22.1715,213.86,213.85,4.9186]
[1736084618500,20.77,213.86,213.81,79.23527719]
[1736084618805,20.77,213.86,213.84,2.3386]
[1736084619605,20.77,213.86,213.82,4.9189]
[1736084620605,20.77,213.86,213.82,2.3389]
[1736084620807,20.77,213.86,213.83,2.58]
[1736084622009,24.51,213.86,213.83,2.58]
[1736084622909,24.51,213.86,213.82,2.58]
[1736084623616,24.51,213.86,213.82,4.9189]
[1736084626709,24.51,213.86,213.82,2.3389]
[1736084629713,26.8485,213.86,213.82,2.3389]
[1736084630517,24.51,213.86,213.82,2.3389]
[1736084630719,2.3386,213.85,213.82,2.3389]
[1736084631021,12.02,213.86,213.81,79.23527719]
[1736084631218,2.3388,213.84,213.78,2.58]
[1736084632115,3.74,213.83,213.78,2.58]
[1736084632516,3.74,213.83,213.8,2.3391]
[1736084633320,16.99,213.83,213.8,2.3391]
[1736084641025,3.74,213.82,213.8,2.3391]
[1736084644230,3.74,213.81,213.8,2.3391]
[1736084646543,12.33,213.81,213.8,2.3391]
[1736084647047,12.33,213.81,213.79,2.3393]
[1736084647850,12.33,213.81,213.78,2.58]
[1736084648444,12.33,213.81,213.78,4.9193]
[1736084650347,12.33,213.81,213.78,2.58]
[1736084651449,19.15,213.81,213.78,4.9193]
[1736084651749,19.15,213.81,213.78,2.58]
[1736084652150,19.15,213.81,213.79,2.3392]
[1736084654352,19.15,213.81,213.8,2.3392]
[1736084660756,19.15,213.81,213.79,4.9193]
[1736084661453,15.41,213.81,213.79,4.9193]
[1736084661655,15.41,213.81,213.79,2.58]
[1736084662650,3.74,213.8,213.79,2.58]
[1736084662852,3.74,213.8,213.77,4.9195]
[1736084663052,3.74,213.8,213.77,2.3395]
[1736084663357,6.0792,213.8,213.76,2.58]
[1736084664147,14.3192,213.8,213.76,2.58]
[1736084664556,11.98,213.8,213.76,4.9196]
[1736084666251,3.74,213.79,213.76,4.9196]
[1736084667156,3.74,213.79,213.77,2.3395]
[1736084677557,11.25,213.79,213.77,2.3395]
[1736084678661,11.25,213.79,213.78,2.3394]
[1736084680860,14.99,213.79,213.78,2.3394]
[1736084683867,14.99,213.79,213.77,2.3395]
[1736084684166,11.25,213.79,213.77,2.3395]
[1736084684766,11.25,213.79,213.75,2.58]
[1736084684970,11.25,213.79,213.76,4.9196]
[1736084685363,3.74,213.78,213.76,4.9196]
[1736084687367,11.87,213.78,213.76,4.9196]
[1736084687665,11.87,213.78,213.76,2.58]
[1736084700077,11.87,213.78,213.66,7.91840055]
[1736084700274,14.7482,213.78,213.67,2.58]
[1736084700469,14.7482,213.78,213.66,1.426]
[1736084700977,3.74,213.77,213.65,25.96960222]
[1736084701179,2.58,213.76,213.65,25.96960222]
[1736084701479,52.042787,213.76,213.61,9.07240055]
[1736084701778,2.3403,213.71,213.66,2.3407]
[1736084701983,52.042787,213.76,213.61,9.07240055]
[1736084702172,3.74,213.77,213.61,9.07240055]
[1736084702374,2.3398,213.74,213.7,2.3402]
[1736084703178,49.45817999,213.76,213.66,2.58]
[1736084704486,49.45817999,213.76,213.72,2.3399]
[1736084706681,51.79777999,213.76,213.72,2.3399]
[1736084707178,2.3401,213.72,213.59,25.96960222]
[1736084707373,2.3401,213.72,213.6,2.58]
[1736084707573,49.45817999,213.76,213.61,2.58]
[1736084707770,2.3403,213.7,213.62,2.341]
[1736084707973,2.3403,213.7,213.63,2.58]
[1736084708182,6.08,213.72,213.63,2.58]
[1736084708385,2.3402,213.71,213.66,2.3406]
[1736084709581,3.74,213.7,213.66,2.3406]
[1736084711582,16.3903,213.7,213.66,2.3406]
[1736084713278,14.05,213.7,213.66,2.3406]
[1736084713877,2.3404,213.69,213.65,2.3408]
[1736084714187,14.05,213.7,213.63,2.58]
[1736084714574,2.3405,213.68,213.58,1.4977]
[1736084714779,2.3405,213.68,213.59,2.58]
[1736084714979,2.3405,213.68,213.59,9.59966374]
[1736084715283,2.3405,213.68,213.61,2.3412]
[1736084715483,2.3405,213.68,213.59,9.59966374]
[1736084716584,2.3405,213.68,213.63,2.3409]
[1736084717981,14.05,213.7,213.59,7.01966374]
[1736084718186,14.05,213.7,213.6,2.58]
[1736084718387,2.3406,213.67,213.61,2.3411]
[1736084718588,2.3406,213.67,213.6,2.58]
[1736084719198,14.05,213.7,213.59,7.01966374]
[1736084719483,14.05,213.7,213.6,2.3413]
[1736084719986,2.341,213.64,213.6,2.3413]
[1736084720685,2.3411,213.63,213.58,2.3415]
[1736084721182,2.58,213.66,213.58,2.3415]
[1736084721378,2.3412,213.62,213.58,2.3415]
[1736084722277,2.3412,213.62,213.57,2.3417]
[1736084722884,9.4812,213.62,213.57,2.3417]
[1736084723079,3.74,213.61,213.55,2.3418]
[1736084723289,3.74,213.61,213.53,2.58]
[1736084723985,6.0813,213.61,213.55,2.3418]
[1736084724789,6.0813,213.61,213.52,2.58]
[1736084724989,6.0813,213.61,213.56,2.3418]
[1736084727392,6.0813,213.61,213.57,2.3416]
[1736084728893,3.74,213.61,213.59,2.3415]
[1736084729095,3.74,213.61,213.57,2.58]
[1736084729592,3.74,213.61,213.6,2.3414]
[1736084731594,3.74,213.61,213.57,2.58]
[1736084731897,7.48,213.61,213.58,2.3415]
[1736084733299,7.48,213.61,213.57,2.58]
[1736084733596,7.48,213.61,213.48,1.4398]
[1736084733788,10.4001,213.61,213.49,2.58]
[1736084734598,2.3414,213.6,213.49,2.58]
[1736084735291,10.4001,213.61,213.49,2.58]
[1736084735600,2.3415,213.59,213.49,2.58]
[1736084736198,2.3415,213.59,213.54,2.3419]
[1736084736401,2.3415,213.59,213.49,2.58]
[1736084736797,10.64,213.59,213.48,1.4398]
[1736084736993,2.3416,213.58,213.49,2.58]
[1736084738114,10.64,213.59,213.52,2.3421]
[1736084738295,2.342,213.54,213.46,2.58]
[1736084738499,10.64,213.59,213.46,2.58]
[1736084739399,2.3419,213.55,213.5,2.3424]
[1736084741306,3.74,213.54,213.5,2.3424]
[1736084742913,2.3423,213.52,213.45,2.58]
[1736084743107,3.74,213.54,213.44,2.58]
[1736084744714,3.74,213.54,213.47,2.3428]
[1736084744915,3.74,213.54,213.44,2.58]
[1736084745515,3.74,213.54,213.52,2.3422]
[1736084746616,3.74,213.54,213.44,2.58]
[1736084746820,3.74,213.54,213.53,2.3421]
[1736084748011,10.8,213.54,213.53,2.3421]
[1736084752629,6.2215,213.54,213.53,2.3421]
[1736084752826,1.6417,213.54,213.53,2.3421]
[1736084753522,10.64,213.59,213.58,2.3416]
[1736084753722,10.64,213.59,213.58,4.9216]
[1736084753916,14.38,213.59,213.58,4.9216]
[1736084754717,14.38,213.59,213.58,2.3416]
[1736084755017,14.38,213.59,213.58,4.9216]
[1736084755216,3.74,213.59,213.58,4.9216]
[1736084755615,3.74,213.59,213.58,2.3416]
[1736084755922,3.74,213.59,213.58,2.58]
[1736084756625,13.92,213.59,213.58,2.58]
[1736084761227,13.92,213.59,213.56,2.58]
[1736084761629,13.92,213.59,213.55,7.01773267]
[1736084762425,13.92,213.59,213.55,9.35963267]
[1736084762927,13.92,213.59,213.56,2.3418]
[1736084765529,13.92,213.59,213.55,7.01773267]
[1736084765831,16.2615,213.59,213.55,9.35963267]
[1736084766837,16.2615,213.59,213.55,2.3419]
[1736084767634,2.3417,213.58,213.54,2.58]
[1736084768129,9.7217,213.58,213.54,2.58]
[1736084768535,2.3417,213.57,213.53,2.3421]
[1736084770534,7.38,213.58,213.51,2.58]
[1736084770736,2.3418,213.56,213.51,4.9222]
[1736084771138,7.38,213.58,213.51,2.3422]
[1736084771439,1.4488,213.55,213.49,2.58]
[1736084771638,1.4488,213.55,213.52,2.3422]
[1736084773440,3.7908,213.55,213.5,2.3424]
[1736084773644,14.5808,213.55,213.49,2.58]
[1736084774438,14.5808,213.55,213.51,2.3423]
[1736084776651,12.2388,213.55,213.49,2.58]
[1736084776866,12.2388,213.55,213.53,2.3421]
[1736084777144,3.74,213.54,213.53,2.3421]
[1736084780346,3.74,213.54,213.52,2.3422]
[1736084783346,3.74,213.54,213.38,25.96960222]
[1736084783552,3.74,213.54,213.51,2.3423]
[1736084783753,3.74,213.54,213.51,4.9223]
[1736084785046,3.74,213.53,213.51,4.9223]
[1736084786947,3.74,213.53,213.52,2.3422]
[1736084791852,3.74,213.53,213.52,4.9222]
[1736084792248,10.77,213.53,213.52,4.9222]
[1736084792850,22.36,213.53,213.52,4.9222]
[1736084797055,22.36,213.53,213.42,25.96960222]
[1736084797056,22.36,213.53,213.45,2.343]
[1736084797254,22.36,213.53,213.46,2.58]
[1736084798358,3.74,213.52,213.5,2.3424]
[1736084802666,3.74,213.52,213.51,2.3423]
[1736084816179,7.48,213.52,213.51,2.3423]
[1736084816579,7.48,213.52,213.51,4.9223]
[1736084817581,15.07,213.52,213.51,4.9223]
[1736084820181,22.9,213.52,213.51,4.9223]
[1736084823688,22.9,213.52,213.51,2.3423]
[1736084823892,22.9,213.52,213.51,4.9423]
[1736084826186,20.3731,213.52,213.51,4.9423]
[1736084826389,16.3864,213.52,213.51,4.9423]
[1736084829485,13.8508,213.52,213.51,4.9423]
[1736084829686,8.8227,213.52,213.51,4.9423]
[1736084830486,7.83,213.52,213.51,4.9423]
[1736084840081,4.9465,213.52,213.51,4.9423]
[1736084840281,11.04,213.53,213.52,2.3422]
[1736084844892,11.04,213.53,213.52,4.9422]
[1736084845498,11.04,213.53,213.52,2.3422]
[1736084845699,11.04,213.53,213.52,4.9422]
[1736084846600,11.04,213.53,213.51,64.41638877]
[1736084846797,11.04,213.53,213.52,2.6]
[1736084847100,11.04,213.53,213.52,0.31]
[1736084847405,11.04,213.53,213.52,2.6522]
[1736084847596,11.04,213.53,213.43,25.96960222]
[1736084847796,11.04,213.53,213.44,2.6]
[1736084847993,11.04,213.53,213.5,2.3425]
[1736084848199,11.04,213.53,213.5,2.6]
[1736084849506,11.04,213.53,213.5,4.9425]
[1736084850304,7.3,213.53,213.5,4.9425]
[1736084850803,7.3,213.53,213.5,2.6524]
[1736084851296,7.3,213.53,213.49,2.6]
[1736084851297,3.74,213.52,213.49,2.6]
[1736084851496,3.74,213.52,213.43,64.09925198]
[1736084851701,3.74,213.52,213.44,2.6]
[1736084851902,3.74,213.52,213.49,2.3425]
[1736084852096,5.2282,213.52,213.49,2.3425]
[1736084853407,6.7205,213.52,213.49,2.3425]
[1736084855899,0.42,213.51,213.49,2.3425]
[1736084857104,0.42,213.51,213.46,2.3429]
[1736084857311,0.42,213.51,213.44,2.6]
[1736084857504,0.42,213.51,213.43,64.09925198]
[1736084857809,0.42,213.51,213.48,2.3426]
[1736084858606,0.42,213.51,213.49,2.3426]
[1736084858802,10.01,213.51,213.49,2.3426]
[1736084861012,10.01,213.51,213.5,4.9425]
[1736084862008,17.77,213.51,213.5,4.9425]
[1736084863002,17.77,213.51,213.5,2.6]
[1736084866916,17.77,213.51,213.5,4.9425]
[1736084867916,17.77,213.51,213.5,2.6]
[1736084870918,17.77,213.51,213.49,2.6]
[1736084874122,17.35,213.51,213.49,4.9425]
[1736084874347,17.35,213.51,213.49,2.6]
[1736084874622,3.74,213.5,213.49,4.9426]
[1736084875112,4.16,213.5,213.49,4.9426]
[1736084875523,4.16,213.5,213.49,2.6]
[1736084876225,15.53,213.5,213.49,2.6]
[1736084878722,15.53,213.5,213.48,2.6]
[1736084881428,15.53,213.5,213.46,2.3429]
[1736084881625,15.53,213.5,213.47,2.6]
[1736084883531,17.8725,213.5,213.47,2.6]
[1736084884431,15.53,213.5,213.48,2.3427]
[1736084884631,15.53,213.5,213.47,2.6]
[1736084886236,22.52,213.5,213.47,2.6]
[1736084887432,2.3426,213.49,213.47,2.6]
[1736084888327,2.3426,213.49,213.46,4.9429]
[1736084888734,2.3426,213.49,213.46,2.6]
[1736084889036,2.3426,213.49,213.45,2.343]
[1736084889539,22.52,213.5,213.45,2.343]
[1736084889740,2.3427,213.48,213.45,2.343]
[1736084889940,22.52,213.5,213.35,19.47720167]
[1736084890139,11.15,213.5,213.4,2.6]
[1736084890341,2.9014,213.49,213.4,2.6]
[1736084890642,2.3429,213.46,213.4,2.6]
[1736084891341,10.9529,213.46,213.4,2.6]
[1736084891642,10.9529,213.46,213.41,2.3433]
[1736084895749,2.3433,213.43,213.37,2.3438]
[1736084896043,8.61,213.46,213.37,4.9438]
[1736084896543,8.61,213.46,213.36,2.6]
[1736084896844,8.61,213.46,213.35,2.3441]
[1736084897143,8.61,213.46,213.35,4.9441]
[1736084897543,2.3437,213.4,213.35,4.9441]
[1736084898137,8.61,213.46,213.35,2.6]
[1736084898339,15.37,213.46,213.35,2.6]
[1736084898745,15.37,213.46,213.36,2.3439]